[Event "elllobregat Open-A 2019"]
[Site "El Prat de Llobregat"]
[Date "2019.12.11"]
[Round "9.5"]
[White "Bryakin, Mikhail"]
[Black "Alonso Rosell, Alvar"]
[Result "1/2-1/2"]
[ECO "E01"]
[WhiteElo "2428"]
[BlackElo "2548"]
[Annotator "ChessBase"]
[PlyCount "87"]
[EventDate "2019.12.03"]
[EventType "swiss"]
[EventCountry "ESP"]
[SourceTitle "playchess.com"]
[Source "ChessBase"]
[SourceQuality "1"]
[TimeControl "40/5400+30:1800+30"]

1. d4 {[%emt 0:00:00]} Nf6 {[%emt 0:22:30]} 2. c4 {[%emt 0:00:00]} e6 {[%emt 0:00:04]} 3. g3 {[%emt 0:00:00]} d5 {[%emt 0:00:02]} 4. Bg2 {[%emt 0:00:00]} Bb4+ {[%emt 0:00:03]} 5. Bd2 {[%emt 0:00:24]} Bd6 {[%emt 0:00:02]} 6. Nf3 {[%emt 0:01:10]} c6 7. Qc2 {[%emt 0:00:47]} Nbd7 {[%emt 0:01:32]} 8. O-O {[%emt 0:00:56]} O-O {[%emt 0:00:03]} 9. Bf4 {[%emt 0:03:59]} Bxf4 {[%emt 0:05:34]} 10. gxf4 {[%emt 0:00:06]} b6 {[%emt 0:00:56]} 11. cxd5 {[%emt 0:06:00]} cxd5 {[%emt 0:00:05]} 12. Nc3 {[%emt 0:00:39]} Bb7 {[%emt 0:00:23]} 13. Rac1 Qe7 {[%emt 0:31:20]} 14. Ne5 {[%emt 0:07:13]} Rfc8 15. Qd2 Ne4 {[%emt 0:20:43]} 16. Nxe4 {[%emt 0:07:11]} dxe4 {[%emt 0:01:18]} 17. Rxc8+ {[%emt 0:00:56]} Rxc8 {[%emt 0:00:02]} 18. Rc1 {[%emt 0:00:57]} Qd8 19. Rxc8 {[%emt 0:01:14]} Qxc8 {[%emt 0:02:01]} 20. Qc3 {[%emt 0:04:42]} Qxc3 {[%emt 0:04:43]} 21. bxc3 {[%emt 0:00:02]} Nb8 {[%emt 0:00:28]} 22. e3 Kf8 {[%emt 0:03:40]} 23. a3 {[%emt 0:05:40]} b5 {[%emt 0:05:23]} 24. Nd3 {[%emt 0:02:55]} Nd7 25. Nb2 {[%emt 0:05:32]} Nb6 {[%emt 0:00:59]} 26. Kf1 {[%emt 0:00:57]} Bd5 {[%emt 0:00:37]} 27. Ke1 {[%emt 0:00:34]} Ke7 {[%emt 0:00:29]} 28. Bf1 {[%emt 0:00:16]} a6 {[%emt 0:00:04]} 29. Kd2 {[%emt 0:00:50]} Bb3 {[%emt 0:00:17]} 30. Bg2 {[%emt 0:01:36]} Bd5 {[%emt 0:01:09]} 31. c4 {[%emt 0:01:48]} Bxc4 {[%emt 0:00:32]} 32. Bxe4 {[%emt 0:00:10]} Bd5 {[%emt 0:00:17]} 33. Bd3 {[%emt 0:00:48]} Bc6 34. e4 a5 {[%emt 0:00:57]} 35. Nd1 {[%emt 0:01:10]} Na8 36. Ne3 {[%emt 0:04:43]} Nc7 {[%emt 0:01:15]} 37. f5 g6 {[%emt 0:00:00]} 38. fxe6 {[%emt 0:03:20]} fxe6 39. Ng4 {[%emt 0:03:30]} g5 {[%emt 0:01:30]} 40. Kc3 {[%emt 0:00:00]} h5 {[%emt 0:00:00]} 41. Ne5 {[%emt 0:02:57]} Be8 {[%emt 0:00:52]} 42. Nf3 g4 43. Ne5 Kf6 44. Kd2 {Kxe5} 1/2-1/2

[Event "elllobregat Open-A 2019"]
[Site "El Prat de Llobregat"]
[Date "2019.12.11"]
[Round "9.6"]
[White "Raja Harshit"]
[Black "Gukesh D"]
[Result "1-0"]
[ECO "B31"]
[WhiteElo "2447"]
[BlackElo "2547"]
[Annotator "ChessBase"]
[PlyCount "65"]
[EventDate "2019.12.03"]
[EventType "swiss"]
[EventCountry "ESP"]
[SourceTitle "playchess.com"]
[Source "ChessBase"]
[SourceQuality "1"]
[TimeControl "40/5400+30:1800+30"]

1. e4 {[%emt 0:00:00]} c5 {[%emt 0:00:00]} 2. Nf3 {[%emt 0:00:00]} Nc6 {[%emt 0:00:17]} 3. Bb5 {[%emt 0:00:33]} g6 {[%emt 0:03:48]} 4. d3 Bg7 {[%emt 0:01:23]} 5. Bxc6 {[%emt 0:00:43]} bxc6 {[%emt 0:05:41]} 6. O-O {[%emt 0:15:10]} d6 7. e5 dxe5 {[%emt 0:02:05]} 8. Re1 {[%emt 0:00:55]} c4 {[%emt 0:16:47]} 9. Nxe5 {[%emt 0:06:50]} cxd3 {[%emt 0:22:19]} 10. Nc3 Nf6 {[%emt 0:01:14]} 11. Nxc6 {[%emt 0:27:53]} Qd6 12. Qf3 Bb7 {[%emt 0:09:35]} 13. Nxe7 {[%emt 0:06:52]} Bxf3 {[%emt 0:00:55]} 14. Nf5+ {[%emt 0:00:00]} Kd7 {[%emt 0:02:07]} 15. Nxd6 {[%emt 0:10:51]} Nd5 {[%emt 0:11:03]} 16. gxf3 {[%emt 0:09:22]} Nxc3 {[%emt 0:04:21]} 17. Nc4 {[%emt 0:03:25]} Ne2+ {[%emt 0:01:42]} 18. Kf1 Nd4 19. Bg5 {[%emt 0:03:41]} f6 {[%emt 0:04:04]} 20. Rad1 {[%emt 0:00:23]} fxg5 {[%emt 0:01:00]} 21. Rxd3 Kc6 22. Re7 {[%emt 0:03:22]} Bf6 {[%emt 0:10:00]} 23. Rf7 {[%emt 0:01:18]} Rhf8 {[%emt 0:00:34]} 24. Rxh7 {[%emt 0:01:41]} Rh8 {[%emt 0:02:05]} 25. Rf7 {[%emt 0:03:08]} Rhf8 {[%emt 0:00:47]} 26. Rh7 Rh8 {[%emt 0:00:38]} 27. Na5+ {[%emt 0:03:51]} Kb6 28. Nc4+ {[%emt 0:03:16]} Kb5 {[%emt 0:01:01]} 29. Rc7 {[%emt 0:00:23]} Rxh2 {[%emt 0:00:25]} 30. a4+ {[%emt 0:00:32]} Ka6 {[%emt 0:00:26]} 31. Rf7 {[%emt 0:00:43]} Bh8 {[%emt 0:00:36]} 32. b4 {[%emt 0:00:21]} Rh4 {[%emt 0:00:36]} 33. Rxd4 1-0

[Event "elllobregat Open-A 2019"]
[Site "El Prat de Llobregat"]
[Date "2019.12.11"]
[Round "9.7"]
[White "Sankalp Gupta"]
[Black "Sosa, Tomas"]
[Result "1-0"]
[ECO "C75"]
[WhiteElo "2365"]
[BlackElo "2520"]
[Annotator "ChessBase"]
[PlyCount "83"]
[EventDate "2019.12.03"]
[EventType "swiss"]
[EventCountry "ESP"]
[SourceTitle "playchess.com"]
[Source "ChessBase"]
[SourceQuality "1"]
[TimeControl "40/5400+30:1800+30"]

1. e4 {[%emt 0:00:30]} e5 {[%emt 0:00:44]} 2. Nf3 {[%emt 0:00:03]} Nc6 {[%emt 0:00:07]} 3. Bb5 {[%emt 0:00:03]} a6 {[%emt 0:00:29]} 4. Ba4 {[%emt 0:00:02]} d6 {[%emt 0:02:25]} 5. c3 {[%emt 0:02:06]} Bd7 {[%emt 0:07:29]} 6. O-O {[%emt 0:00:35]} g6 {[%emt 0:09:37]} 7. d4 {[%emt 0:00:07]} Bg7 {[%emt 0:00:05]} 8. dxe5 {[%emt 0:02:00]} dxe5 {[%emt 0:00:31]} 9. Be3 {[%emt 0:00:09]} Nf6 {[%emt 0:00:52]} 10. Nbd2 {[%emt 0:00:41]} O-O {[%emt 0:00:52]} 11. h3 {[%emt 0:03:08]} Re8 {[%emt 0:03:14]} 12. Bb3 {[%emt 0:03:06]} h6 {[%emt 0:01:39]} 13. a4 {[%emt 0:07:28]} Nh5 {[%emt 0:02:34]} 14. Bd5 {[%emt 0:06:21]} Qf6 {[%emt 0:04:34]} 15. a5 {[%emt 0:14:41]} Rad8 {[%emt 0:01:52]} 16. Qb3 {[%emt 0:00:31]} Bc8 {[%emt 0:10:56]} 17. Rfd1 {[%emt 0:00:21]} Nf4 {[%emt 0:07:09]} 18. Bxf4 {[%emt 0:00:23]} exf4 {[%emt 0:03:58]} 19. Nc4 {[%emt 0:00:37]} g5 {[%emt 0:00:15]} 20. Rd2 {[%emt 0:04:29]} Bf8 {[%emt 0:08:12]} 21. Rad1 {[%emt 0:00:47]} Bc5 {[%emt 0:01:39]} 22. Nce5 {[%emt 0:10:49]} Nxe5 {[%emt 0:10:53]} 23. Nxe5 {[%emt 0:00:24]} Kg7 {[%emt 0:00:11]} 24. Nxf7 {[%emt 0:02:54]} Rxd5 {[%emt 0:10:29]} 25. Qxd5 {[%emt 0:01:35]} Ba7 {[%emt 0:03:48]} 26. Nd8 {[%emt 0:00:34]} g4 {[%emt 0:00:03]} 27. Qh5 {[%emt 0:05:16]} Kf8 {[%emt 0:05:39]} 28. hxg4 {[%emt 0:02:40]} Re5 {[%emt 0:00:27]} 29. Qh3 {[%emt 0:00:47]} Qg6 {[%emt 0:00:18]} 30. Qf3 {[%emt 0:13:28]} Rxe4 {[%emt 0:00:46]} 31. Nc6 {[%emt 0:03:26]} Bxg4 {[%emt 0:03:09]} 32. Rd8+ {[%emt 0:04:30]} Kf7 {[%emt 0:00:28]} 33. R1d7+ {[%emt 0:00:34]} Bxd7 {[%emt 0:00:01]} 34. Rxd7+ {[%emt 0:00:01]} Ke8 {[%emt 0:01:00]} 35. Rd8+ {[%emt 0:00:30]} Kf7 {[%emt 0:00:01]} 36. Nxa7 {[%emt 0:00:23]} Re1+ {[%emt 0:01:00]} 37. Kh2 {[%emt 0:00:02]} Qf5 {[%emt 0:00:33]} 38. Rd4 {[%emt 0:01:55]} Ke8 {[%emt 0:00:30]} 39. Rxf4 {[%emt 0:00:39]} Qc5 {[%emt 0:00:29]} 40. b4 {[%emt 0:00:00]} Qxa7 {[%emt 0:00:00]} 41. Rf8+ {[%emt 0:02:08]} Kd7 {[%emt 0:00:42]} 42. Qd5+ {[%emt 0:00:01]} 1-0

[Event "elllobregat Open-A 2019"]
[Site "El Prat de Llobregat"]
[Date "2019.12.11"]
[Round "9.9"]
[White "Del Rio De Angelis, Salvador G."]
[Black "Raja Rithvik R"]
[Result "1/2-1/2"]
[ECO "E53"]
[WhiteElo "2507"]
[BlackElo "2381"]
[Annotator "ChessBase"]
[PlyCount "33"]
[EventDate "2019.12.03"]
[EventType "swiss"]
[EventCountry "ESP"]
[SourceTitle "playchess.com"]
[Source "ChessBase"]
[SourceQuality "1"]
[TimeControl "40/5400+30:1800+30"]

1. d4 {[%emt 0:00:00]} Nf6 {[%emt 0:00:00]} 2. c4 {[%emt 0:00:00]} e6 {[%emt 0:00:00]} 3. Nc3 {[%emt 0:00:19]} Bb4 {[%emt 0:00:03]} 4. e3 {[%emt 0:00:14]} O-O {[%emt 0:00:12]} 5. Bd3 {[%emt 0:00:21]} d5 {[%emt 0:00:10]} 6. Nf3 {[%emt 0:00:18]} c5 {[%emt 0:00:13]} 7. O-O {[%emt 0:00:09]} cxd4 {[%emt 0:00:19]} 8. exd4 {[%emt 0:00:08]} dxc4 {[%emt 0:00:06]} 9. Bxc4 {[%emt 0:00:10]} b6 {[%emt 0:00:06]} 10. Qe2 {[%emt 0:00:29]} Bb7 {[%emt 0:00:13]} 11. Rd1 {[%emt 0:00:10]} Nbd7 {[%emt 0:01:06]} 12. d5 {[%emt 0:00:36]} exd5 {[%emt 0:06:13]} 13. Nxd5 {[%emt 0:02:15]} Nxd5 {[%emt 0:05:57]} 14. Bxd5 {[%emt 0:00:09]} Bxd5 {[%emt 0:00:14]} 15. Rxd5 {[%emt 0:00:08]} Qc7 {[%emt 0:00:25]} 16. Bg5 {[%emt 0:29:58]} Qc6 {[%emt 0:42:14]} 17. Rad1 {[%emt 0:11:41]} 1/2-1/2

[Event "elllobregat Open-A 2019"]
[Site "El Prat de Llobregat"]
[Date "2019.12.11"]
[Round "9.10"]
[White "Verstraeten, Rein"]
[Black "Arizmendi Martinez, Julen Luis"]
[Result "1/2-1/2"]
[ECO "A53"]
[WhiteElo "2365"]
[BlackElo "2511"]
[Annotator "ChessBase"]
[PlyCount "29"]
[EventDate "2019.12.03"]
[EventType "swiss"]
[EventCountry "ESP"]
[SourceTitle "playchess.com"]
[Source "ChessBase"]
[SourceQuality "1"]
[TimeControl "40/5400+30:1800+30"]

1. d4 {[%emt 0:18:39]} Nf6 {[%emt 0:00:00]} 2. c4 {[%emt 0:00:08]} d6 {[%emt 0:00:28]} 3. Nc3 {[%emt 0:00:39]} g6 {[%emt 0:01:23]} 4. e4 {[%emt 0:00:04]} Bg7 {[%emt 0:00:04]} 5. Bd3 {[%emt 0:00:06]} O-O {[%emt 0:01:45]} 6. Nge2 {[%emt 0:00:03]} Nc6 {[%emt 0:00:29]} 7. O-O {[%emt 0:00:10]} e5 {[%emt 0:02:31]} 8. d5 {[%emt 0:00:05]} Nd4 {[%emt 0:00:14]} 9. Bg5 {[%emt 0:00:07]} h6 {[%emt 0:01:12]} 10. Bd2 {[%emt 0:00:05]} Nd7 {[%emt 0:15:51]} 11. Be3 {[%emt 0:15:32]} c5 {[%emt 0:14:47]} 12. f3 {[%emt 0:01:04]} f5 {[%emt 0:21:59]} 13. exf5 {[%emt 0:00:32]} gxf5 14. Qd2 {[%emt 0:06:33]} Qh4 {[%emt 0:11:27]} 15. Kh1 {[%emt 0:02:14]} 1/2-1/2

[Event "elllobregat Open-A 2019"]
[Site "El Prat de Llobregat"]
[Date "2019.12.11"]
[Round "9.11"]
[White "Kjartansson, Gudmundur"]
[Black "Harsha Bharathakoti"]
[Result "1-0"]
[ECO "A13"]
[WhiteElo "2448"]
[BlackElo "2523"]
[Annotator "ChessBase"]
[PlyCount "67"]
[EventDate "2019.12.03"]
[EventType "swiss"]
[EventCountry "ESP"]
[SourceTitle "playchess.com"]
[Source "ChessBase"]
[SourceQuality "1"]
[TimeControl "40/5400+30:1800+30"]

1. c4 {[%emt 0:00:00]} e6 {[%emt 0:00:48]} 2. Nc3 {[%emt 0:00:00]} d5 {[%emt 0:00:04]} 3. d4 {[%emt 0:00:00]} Bb4 {[%emt 0:00:16]} 4. a3 {[%emt 0:00:22]} Bxc3+ {[%emt 0:00:08]} 5. bxc3 {[%emt 0:00:04]} Nf6 {[%emt 0:00:27]} 6. cxd5 {[%emt 0:02:39]} exd5 {[%emt 0:00:13]} 7. e3 {[%emt 0:00:07]} O-O {[%emt 0:02:12]} 8. Bd3 {[%emt 0:00:08]} c5 {[%emt 0:07:24]} 9. Ne2 {[%emt 0:00:16]} b6 {[%emt 0:00:32]} 10. O-O {[%emt 0:00:14]} Ba6 {[%emt 0:01:28]} 11. f3 {[%emt 0:02:18]} Bxd3 {[%emt 0:06:00]} 12. Qxd3 {[%emt 0:00:20]} Re8 {[%emt 0:00:04]} 13. Ng3 {[%emt 0:01:07]} Nc6 {[%emt 0:00:13]} 14. Bb2 {[%emt 0:01:43]} Rc8 {[%emt 0:13:29]} 15. Rae1 {[%emt 0:05:57]} Qd7 {[%emt 0:11:47]} 16. e4 {[%emt 0:06:30]} dxe4 {[%emt 0:12:40]} 17. fxe4 Ne5 {[%emt 0:00:30]} 18. Qd1 {[%emt 0:00:50]} Nc4 {[%emt 0:06:47]} 19. Bc1 {[%emt 0:00:39]} cxd4 {[%emt 0:00:04]} 20. cxd4 Rcd8 {[%emt 0:04:07]} 21. Nf5 {[%emt 0:21:14]} Kh8 {[%emt 0:10:41]} 22. Bg5 {[%emt 0:05:55]} Re6 {[%emt 0:07:21]} 23. Nxg7 {[%emt 0:29:07]} Kxg7 {[%emt 0:00:59]} 24. d5 {[%emt 0:00:07]} Qe7 {[%emt 0:08:17]} 25. Qa1 {[%emt 0:01:49]} Kg6 {[%emt 0:02:57]} 26. dxe6 {[%emt 0:11:24]} Kxg5 {[%emt 0:00:05]} 27. exf7 {[%emt 0:01:09]} Nd2 {[%emt 0:03:04]} 28. e5 {[%emt 0:02:43]} Ng4 {[%emt 0:00:50]} 29. e6 {[%emt 0:00:40]} Kg6 {[%emt 0:00:14]} 30. f8=Q {[%emt 0:04:06]} Rxf8 {[%emt 0:00:09]} 31. Rxf8 {[%emt 0:00:02]} Qc5+ {[%emt 0:01:08]} 32. Kh1 {[%emt 0:00:10]} Qxf8 {[%emt 0:00:00]} 33. e7 {[%emt 0:00:00]} Qe8 {[%emt 0:00:08]} 34. Qd4 {[%emt 0:00:30]} 1-0

[Event "elllobregat Open-A 2019"]
[Site "El Prat de Llobregat"]
[Date "2019.12.11"]
[Round "9.13"]
[White "Movsziszian, Karen"]
[Black "Baenziger, Fabian"]
[Result "0-1"]
[ECO "A06"]
[WhiteElo "2476"]
[BlackElo "2398"]
[Annotator "ChessBase"]
[PlyCount "37"]
[EventDate "2019.12.03"]
[EventType "swiss"]
[EventCountry "ESP"]
[SourceTitle "playchess.com"]
[Source "ChessBase"]
[SourceQuality "1"]
[TimeControl "40/5400+30:1800+30"]

1. g3 {[%emt 0:00:00]} d5 {[%emt 0:00:00]} 2. Nf3 {[%emt 0:00:00]} g6 3. c4 {[%emt 0:04:15]} dxc4 {[%emt 0:00:31]} 4. Na3 {[%emt 0:01:57]} Bg7 {[%emt 0:00:30]} 5. Nxc4 {[%emt 0:00:12]} Nc6 6. Bg2 {[%emt 0:00:28]} e5 {[%emt 0:00:44]} 7. d3 {[%emt 0:01:18]} e4 {[%emt 0:03:16]} 8. dxe4 {[%emt 0:01:43]} Qxd1+ {[%emt 0:00:08]} 9. Kxd1 {[%emt 0:00:04]} Nf6 {[%emt 0:00:18]} 10. Ncd2 {[%emt 0:14:39]} h6 {[%emt 0:10:04]} 11. a3 Be6 {[%emt 0:01:33]} 12. Rb1 {[%emt 0:08:04]} Ba2 {[%emt 0:06:54]} 13. Ra1 {[%emt 0:00:02]} Be6 {[%emt 0:00:07]} 14. Ne1 {[%emt 0:01:11]} Ng4 {[%emt 0:05:34]} 15. Nd3 {[%emt 0:00:47]} O-O-O {[%emt 0:00:30]} 16. h3 {[%emt 0:14:21]} Rxd3 {[%emt 0:00:41]} 17. hxg4 Rd7 {[%emt 0:02:14]} 18. e3 {[%emt 0:03:48]} Rhd8 {[%emt 0:10:49]} 19. Kc2 {[%emt 0:01:11]} 0-1

[Event "elllobregat Open-A 2019"]
[Site "El Prat de Llobregat"]
[Date "2019.12.11"]
[Round "9.14"]
[White "Mendonca, Leon Luke"]
[Black "Karthik Venkataraman"]
[Result "1/2-1/2"]
[ECO "D90"]
[WhiteElo "2398"]
[BlackElo "2470"]
[Annotator "ChessBase"]
[PlyCount "82"]
[EventDate "2019.12.03"]
[EventType "swiss"]
[EventCountry "ESP"]
[SourceTitle "playchess.com"]
[Source "ChessBase"]
[SourceQuality "1"]
[TimeControl "40/5400+30:1800+30"]

1. d4 {[%emt 0:00:00]} Nf6 {[%emt 0:00:00]} 2. c4 {[%emt 0:00:00]} g6 {[%emt 0:00:00]} 3. Nc3 {[%emt 0:00:00]} d5 {[%emt 0:00:06]} 4. Nf3 {[%emt 0:00:23]} Bg7 {[%emt 0:00:05]} 5. cxd5 {[%emt 0:00:57]} Nxd5 {[%emt 0:00:06]} 6. e3 {[%emt 0:00:11]} O-O {[%emt 0:00:26]} 7. Bc4 {[%emt 0:00:21]} Nb6 {[%emt 0:00:31]} 8. Bb3 {[%emt 0:00:17]} c5 {[%emt 0:00:14]} 9. O-O {[%emt 0:01:45]} cxd4 {[%emt 0:00:23]} 10. exd4 {[%emt 0:00:19]} Nc6 {[%emt 0:00:07]} 11. d5 {[%emt 0:01:51]} Na5 {[%emt 0:00:06]} 12. Re1 {[%emt 0:03:25]} Bg4 {[%emt 0:02:34]} 13. h3 {[%emt 0:01:47]} Bxf3 {[%emt 0:13:05]} 14. Qxf3 {[%emt 0:00:09]} Re8 {[%emt 0:00:26]} 15. Be3 {[%emt 0:17:13]} Qd7 {[%emt 0:22:37]} 16. Rad1 {[%emt 0:12:36]} Nac4 {[%emt 0:04:43]} 17. Bxb6 {[%emt 0:09:25]} Nxb6 {[%emt 0:00:07]} 18. Ne4 {[%emt 0:02:13]} Rac8 19. Ng5 {[%emt 0:18:42]} Rf8 {[%emt 0:12:57]} 20. Qf4 {[%emt 0:00:54]} h6 {[%emt 0:03:01]} 21. Ne4 {[%emt 0:01:57]} a5 {[%emt 0:08:47]} 22. d6 {[%emt 0:08:44]} e6 {[%emt 0:07:17]} 23. Nf6+ {[%emt 0:02:17]} Bxf6 {[%emt 0:00:06]} 24. Qxf6 {[%emt 0:00:02]} Rfe8 {[%emt 0:00:11]} 25. Qd4 {[%emt 0:03:56]} Rc6 {[%emt 0:01:18]} 26. Rd3 {[%emt 0:00:56]} Rec8 {[%emt 0:06:24]} 27. Kh2 {[%emt 0:09:41]} Nd5 {[%emt 0:03:47]} 28. Bxd5 {[%emt 0:01:40]} Qxd6+ {[%emt 0:00:06]} 29. Qe5 {[%emt 0:00:57]} exd5 {[%emt 0:00:24]} 30. Rxd5 {[%emt 0:00:13]} Qxe5+ {[%emt 0:00:06]} 31. Rdxe5 {[%emt 0:00:05]} Rc2 {[%emt 0:00:24]} 32. R1e2 {[%emt 0:00:11]} a4 {[%emt 0:00:18]} 33. Kg3 {[%emt 0:00:23]} Rxe2 {[%emt 0:00:35]} 34. Rxe2 {[%emt 0:00:01]} Rc4 {[%emt 0:00:45]} 35. Kf3 {[%emt 0:00:27]} Kg7 {[%emt 0:02:22]} 36. Ke3 {[%emt 0:00:46]} a3 {[%emt 0:02:27]} 37. b3 {[%emt 0:02:52]} Rc1 {[%emt 0:00:06]} 38. Kd2 {[%emt 0:00:39]} Rb1 {[%emt 0:00:14]} 39. Kc2 {[%emt 0:00:34]} Rb2+ {[%emt 0:00:44]} 40. Kd3 {[%emt 0:00:00]} Rb1 {[%emt 0:00:00]} 41. Kc2 {[%emt 0:01:19]} Rb2+ {[%emt 0:00:18]} 1/2-1/2

[Event "elllobregat Open-A 2019"]
[Site "El Prat de Llobregat"]
[Date "2019.12.11"]
[Round "9.15"]
[White "Alsina Leal, Daniel"]
[Black "Krishna Teja, N."]
[Result "1/2-1/2"]
[ECO "C95"]
[WhiteElo "2462"]
[BlackElo "2383"]
[Annotator "ChessBase"]
[PlyCount "133"]
[EventDate "2019.12.03"]
[EventType "swiss"]
[EventCountry "ESP"]
[SourceTitle "playchess.com"]
[Source "ChessBase"]
[SourceQuality "1"]
[TimeControl "40/5400+30:1800+30"]

1. e4 {[%emt 0:00:00]} e5 {[%emt 0:03:49]} 2. Nf3 {[%emt 0:00:00]} Nc6 {[%emt 0:00:03]} 3. Bb5 {[%emt 0:00:00]} a6 {[%emt 0:00:04]} 4. Ba4 {[%emt 0:00:00]} Nf6 {[%emt 0:00:06]} 5. O-O {[%emt 0:00:20]} Be7 {[%emt 0:00:04]} 6. Re1 {[%emt 0:00:04]} b5 {[%emt 0:00:04]} 7. Bb3 {[%emt 0:00:04]} d6 {[%emt 0:00:06]} 8. c3 {[%emt 0:00:12]} O-O {[%emt 0:00:10]} 9. h3 {[%emt 0:00:13]} Nb8 {[%emt 0:00:14]} 10. d4 {[%emt 0:00:21]} Nbd7 {[%emt 0:00:05]} 11. Nbd2 {[%emt 0:00:17]} Bb7 {[%emt 0:00:13]} 12. Bc2 {[%emt 0:00:22]} Re8 {[%emt 0:02:47]} 13. Nf1 {[%emt 0:00:15]} Bf8 {[%emt 0:01:19]} 14. Ng3 {[%emt 0:00:29]} g6 {[%emt 0:00:06]} 15. a4 {[%emt 0:00:36]} Bg7 {[%emt 0:00:35]} 16. Bd3 {[%emt 0:02:00]} exd4 {[%emt 0:00:49]} 17. cxd4 {[%emt 0:02:01]} c5 {[%emt 0:00:07]} 18. axb5 {[%emt 0:09:59]} axb5 {[%emt 0:00:30]} 19. Rxa8 {[%emt 0:00:07]} Bxa8 {[%emt 0:00:16]} 20. dxc5 {[%emt 0:02:14]} Nxc5 {[%emt 0:00:05]} 21. Bxb5 {[%emt 0:00:53]} Rf8 {[%emt 0:00:00]} 22. e5 {[%emt 0:25:44]} dxe5 23. Qxd8 {[%emt 0:01:50]} Rxd8 {[%emt 0:00:25]} 24. Nxe5 {[%emt 0:00:20]} Nd5 {[%emt 0:03:48]} 25. Bc4 {[%emt 0:11:50]} Re8 {[%emt 0:00:39]} 26. Nd3 {[%emt 0:02:14]} Rxe1+ {[%emt 0:00:28]} 27. Nxe1 {[%emt 0:00:04]} Nb6 {[%emt 0:00:14]} 28. Ba2 {[%emt 0:05:53]} Bd5 {[%emt 0:00:39]} 29. Bxd5 {[%emt 0:02:48]} Nxd5 {[%emt 0:00:03]} 30. Ne2 {[%emt 0:01:36]} f5 {[%emt 0:02:23]} 31. g3 {[%emt 0:08:57]} Kf7 {[%emt 0:01:47]} 32. Kg2 {[%emt 0:00:37]} h5 {[%emt 0:01:08]} 33. f4 {[%emt 0:02:06]} Bf6 {[%emt 0:03:13]} 34. Nf3 {[%emt 0:03:55]} Nd3 {[%emt 0:02:49]} 35. b3 {[%emt 0:01:31]} Nc3 {[%emt 0:00:20]} 36. Nfg1 {[%emt 0:02:47]} Nc5 {[%emt 0:00:08]} 37. b4 {[%emt 0:04:34]} Nd3 {[%emt 0:00:04]} 38. Bd2 {[%emt 0:02:23]} Ne4 {[%emt 0:00:19]} 39. Nc1 {[%emt 0:03:00]} Nxc1 {[%emt 0:03:22]} 40. Bxc1 {[%emt 0:00:00]} Be7 {[%emt 0:00:00]} 41. b5 {[%emt 0:01:08]} Bc5 {[%emt 0:00:23]} 42. Nf3 {[%emt 0:11:18]} Nd6 {[%emt 0:01:58]} 43. Ne5+ {[%emt 0:00:28]} Ke6 {[%emt 0:00:06]} 44. Nxg6 {[%emt 0:00:36]} Nxb5 {[%emt 0:00:06]} 45. Ne5 {[%emt 0:00:35]} Bd4 {[%emt 0:00:46]} 46. Nd3 {[%emt 0:00:24]} Nd6 {[%emt 0:00:54]} 47. Bb2 {[%emt 0:00:43]} Bb6 {[%emt 0:01:11]} 48. Kf3 {[%emt 0:00:17]} Ne4 {[%emt 0:02:27]} 49. Bc1 {[%emt 0:02:37]} Bd4 {[%emt 0:00:34]} 50. Nb4 {[%emt 0:01:04]} Bc5 {[%emt 0:07:53]} 51. Nc2 {[%emt 0:01:05]} Kf6 {[%emt 0:04:20]} 52. Be3 {[%emt 0:08:19]} Bxe3 {[%emt 0:01:42]} 53. Nxe3 {[%emt 0:00:12]} Nd2+ {[%emt 0:00:07]} 54. Ke2 {[%emt 0:01:14]} Ne4 {[%emt 0:00:08]} 55. Nf1 {[%emt 0:00:25]} Ke6 {[%emt 0:01:02]} 56. Kf3 {[%emt 0:00:25]} Kf6 {[%emt 0:01:04]} 57. Ke3 {[%emt 0:00:59]} Ke6 {[%emt 0:00:45]} 58. g4 {[%emt 0:05:25]} hxg4 {[%emt 0:00:15]} 59. hxg4 {[%emt 0:00:03]} Kf6 {[%emt 0:00:13]} 60. Kd4 {[%emt 0:01:01]} Nf2 {[%emt 0:00:35]} 61. g5+ {[%emt 0:01:04]} Kg6 {[%emt 0:00:05]} 62. Ng3 {[%emt 0:01:28]} Nh3 {[%emt 0:00:10]} 63. Ke5 {[%emt 0:00:04]} Nxg5 {[%emt 0:00:10]} 64. Nxf5 {[%emt 0:00:04]} Nh3 {[%emt 0:00:25]} 65. Nh4+ {[%emt 0:00:29]} Kh5 {[%emt 0:00:11]} 66. Ng2 {[%emt 0:00:27]} Nxf4 {[%emt 0:00:06]} 67. Nxf4+ 1/2-1/2

[Event "elllobregat Open-A 2019"]
[Site "El Prat de Llobregat"]
[Date "2019.12.11"]
[Round "9.17"]
[White "Kulkarni Bhakti"]
[Black "Jerez Perez, Alfonso"]
[Result "1/2-1/2"]
[ECO "A48"]
[WhiteElo "2418"]
[BlackElo "2369"]
[Annotator "NA"]
[PlyCount "70"]
[EventDate "2019.12.03"]
[EventType "swiss"]
[EventCountry "ESP"]
[SourceTitle "playchess.com"]
[Source "ChessBase"]
[SourceQuality "1"]
[TimeControl "40/5400+30:1800+30"]

1. d4 {[%emt 0:00:00]} Nf6 {[%emt 0:01:29]} 2. Nf3 {[%emt 0:00:00]} g6 {[%emt 0:00:16]} 3. Bg5 {[%emt 0:00:21]} Bg7 {[%emt 0:00:57]} 4. Nbd2 {[%emt 0:00:19]} O-O {[%emt 0:00:19]} 5. c3 {[%emt 0:00:14]} d6 {[%emt 0:01:00]} 6. e4 {[%emt 0:00:36]} c5 {[%emt 0:00:09]} 7. dxc5 {[%emt 0:03:19]} dxc5 {[%emt 0:01:23]} 8. Bc4 {[%emt 0:04:06]} Nc6 {[%emt 0:03:35]} 9. O-O {[%emt 0:05:05]} Qc7 {[%emt 0:03:48]} 10. Qe2 {[%emt 0:02:10]} h6 {[%emt 0:04:29]} 11. Bh4 {[%emt 0:06:44]} Nh5 {[%emt 0:01:36]} 12. Qe3 {[%emt 0:01:49]} Na5 {[%emt 0:04:59]} 13. Bd3 {[%emt 0:04:50]} Be6 {[%emt 0:14:24]} 14. e5 {[%emt 0:11:22]} Rad8 {[%emt 0:06:14]} 15. Bc2 {[%emt 0:04:22]} Nc6 {[%emt 0:12:13]} 16. Qxc5 {[%emt 0:12:33]} b6 {[%emt 0:04:52]} 17. Qe3 {[%emt 0:01:12]} Nxe5 {[%emt 0:07:05]} 18. Rfd1 {[%emt 0:05:29]} Rfe8 {[%emt 0:08:34]} 19. Nxe5 {[%emt 0:17:30]} Qxe5 {[%emt 0:00:37]} 20. Qxe5 {[%emt 0:00:56]} Bxe5 {[%emt 0:00:05]} 21. Nf3 {[%emt 0:04:17]} Bf6 {[%emt 0:01:00]} 22. Bxf6 {[%emt 0:00:22]} Nxf6 {[%emt 0:00:05]} 23. Ne5 {[%emt 0:02:24]} Rxd1+ {[%emt 0:01:18]} 24. Rxd1 {[%emt 0:00:08]} Rc8 {[%emt 0:00:07]} 25. a3 {[%emt 0:01:32]} Kg7 {[%emt 0:02:29]} 26. Rd4 {[%emt 0:00:38]} g5 {[%emt 0:01:31]} 27. f3 {[%emt 0:01:00]} Rc5 {[%emt 0:00:57]} 28. Nd3 {[%emt 0:01:39]} Rd5 {[%emt 0:00:35]} 29. Rxd5 {[%emt 0:00:12]} Nxd5 {[%emt 0:00:44]} 30. Kf2 {[%emt 0:00:03]} Kf6 {[%emt 0:00:49]} 31. c4 {[%emt 0:00:36]} Nf4 {[%emt 0:01:03]} 32. b3 {[%emt 0:01:34]} Nxd3+ {[%emt 0:00:33]} 33. Bxd3 {[%emt 0:00:01]} Ke5 {[%emt 0:00:07]} 34. Ke3 {[%emt 0:00:37]} f5 {[%emt 0:01:18]} 35. Be2 {[%emt 0:00:02]} Bf7 {[%emt 0:03:03] Ke4+} 1/2-1/2